bitfinex/quotes_ETHUSD_20230403
["timestamp","ask_amount","ask_price","bid_price","bid_amount"]
[1680548977136,5.821,1827.8,1827.6,3.27957]
[1680548977334,5.823,1827.8,1827.6,3.27957]
[1680548977574,5.823,1827.8,1827.6,3.82673]
[1680548977789,0.002,1827.8,1827.6,4.418903]
[1680548977963,5.821,1827.8,1827.6,4.418903]
[1680548978259,5.823,1827.8,1827.6,4.418903]
[1680548979048,5.823,1827.8,1827.6,3.82673]
[1680548979449,5.823,1827.8,1827.6,0.27957]
[1680548979653,5.823,1827.8,1827.6,3.27957]
[1680548980070,0.002,1827.8,1827.6,3.27957]
[1680548980277,8.58702218,1827.9,1827.6,0.27957]
[1680548980455,0.002,1827.9,1827.6,0.82673]
[1680548980657,15.54708,1828.3,1827.6,1.209403]
[1680548980861,2.76602218,1828.2,1827.6,1.209403]
[1680548981239,6.0434,1828.3,1827.6,1.209403]
[1680548981440,8.80942218,1828.3,1827.7,0.1209403]
[1680548981679,9.08289218,1828.3,1827.7,0.4004903]
[1680548982146,5.821,1828.2,1827.7,0.1269403]
[1680548982497,6.0965,1828.2,1827.7,0.1269403]
[1680548982692,5.823,1828.2,1827.7,0.4005003]
[1680548982890,0.002,1828.2,1827.7,0.4005003]
[1680548983190,0.002,1828.3,1827.7,0.4005003]
[1680548983359,6.09449,1828.2,1827.7,0.1269403]
[1680548983558,5.823,1828.2,1827.7,0.006]
[1680548983875,5.823,1828.2,1827.7,0.27955]
[1680548984393,0.002,1828.2,1827.7,2.91968]
[1680548984598,0.27547,1828.4,1828.0,2.093]
[1680548984902,6.25544,1828.6,1828.0,2.3725]
[1680548985048,0.27345,1828.5,1828.1,0.2093]
[1680548985247,0.27345,1828.5,1828.1,0.2153]
[1680548985248,6.09445,1828.5,1828.1,0.2153]
[1680548985496,6.09645,1828.5,1828.1,0.2153]
[1680548985849,0.27346,1828.4,1828.1,0.2153]
[1680548986270,6.36991,1828.5,1828.1,0.2153]
[1680548986271,6.09646,1828.5,1828.1,0.2153]
[1680548986595,5.823,1828.5,1828.1,0.2153]
[1680548987097,5.823,1828.5,1828.1,0.4888]
[1680548987300,5.823,1828.5,1828.1,2.5818]
[1680548987446,5.823,1828.5,1828.2,3.25818]
[1680548987645,5.823,1828.5,1828.2,3.26418]
[1680548988145,8.58702218,1828.4,1828.2,0.006]
[1680548988344,9.40941218,1828.4,1828.1,0.006]
[1680548988846,0.002,1828.4,1828.1,0.006]
[1680548989002,5.821,1828.3,1828.1,0.006]
[1680548989211,5.823,1828.3,1828.1,0.006]
[1680548989913,0.002,1828.3,1828.1,0.006]
[1680548990119,6.09645,1828.5,1828.1,0.006]
[1680548990318,10.04277218,1828.5,1828.1,0.006]
[1680548990627,0.002,1828.5,1828.1,0.006]
[1680548990823,5.984,1828.6,1828.1,0.006]
[1680548990974,14.57102218,1828.6,1828.1,0.2795]
[1680548991508,14.84445218,1828.6,1828.1,0.006]
[1680548991718,14.84445218,1828.6,1828.1,0.92780175]
[1680548992027,14.84445218,1828.6,1828.1,3.65430175]
[1680548992334,15.39131218,1828.6,1828.1,3.65430175]
[1680548992623,15.39131218,1828.6,1828.1,3.006]
[1680548992834,15.39131218,1828.6,1828.1,4.37354]
[1680548993129,14.84445218,1828.6,1828.1,4.37354]
[1680548993429,14.57102218,1828.6,1828.1,4.37354]
[1680548993606,14.57102218,1828.6,1828.1,4.64704]
[1680548993779,14.57102218,1828.6,1828.1,5.45944575]
[1680548993979,14.57102218,1828.6,1828.1,5.46144575]
[1680548994229,14.84445218,1828.6,1828.1,5.18794575]
[1680548994531,14.44245148,1828.6,1828.1,5.18794575]
[1680548994739,14.44245148,1828.6,1828.1,4.37554]
[1680548995022,14.44245148,1828.6,1828.1,4.37354]
[1680548995376,5.821,1828.4,1828.1,4.37354]
[1680548995577,5.821,1828.4,1828.1,1.37354]
[1680548995578,0.27347,1828.3,1828.1,1.37354]
[1680548995778,8.58702218,1828.3,1828.1,1.37354]
[1680548996018,8.58902218,1828.3,1828.1,1.37354]
[1680548996388,0.002,1828.3,1828.1,1.64704]
[1680548996591,5.3085693,1828.6,1828.1,4.92200437]
[1680548996835,2.76602218,1828.5,1828.1,1.64850437]
[1680548997047,2.76602218,1828.5,1828.1,1.64704]
[1680548997635,11.1295693,1828.6,1828.1,1.64704]
[1680548997809,13.89559148,1828.6,1828.1,1.37354]
[1680548998008,13.89559148,1828.6,1828.1,1.64704]
[1680548998248,13.89559148,1828.6,1828.1,2.16750037]
[1680548998450,13.62816148,1828.6,1828.1,4.74200037]
[1680548998590,13.62816148,1828.6,1828.1,5.01549037]
[1680548998942,13.62816148,1828.6,1828.1,5.01749037]
[1680548999238,13.90159148,1828.6,1828.1,4.74400037]
[1680548999544,13.90159148,1828.6,1828.1,4.74200037]
[1680549000651,13.90159148,1828.6,1828.1,5.01550037]
[1680549000834,13.90159148,1828.6,1828.1,5.01750037]
[1680549001041,13.90159148,1828.6,1828.1,4.74400037]
[1680549001239,13.90159148,1828.6,1828.1,4.74200037]
[1680549001623,13.62816148,1828.6,1828.2,0.47420004]
[1680549001855,0.008,1828.6,1828.3,2.088]
[1680549002157,0.11000001,1828.9,1828.4,2.91338]
[1680549002158,5.93700001,1828.9,1828.4,2.91338]
[1680549002458,0.11800001,1828.9,1828.4,2.91338]
[1680549002658,0.11600001,1828.9,1828.5,0.291338]
[1680549002862,0.11600001,1828.9,1828.6,0.82029]
[1680549003010,0.11600001,1828.9,1828.6,2.35442]
[1680549003011,0.11000001,1828.9,1828.6,2.35442]
[1680549003207,0.11000001,1828.9,1828.6,3.99501]
[1680549004747,0.11000001,1828.9,1828.7,2.76602218]
[1680549005063,0.11000001,1828.9,1828.8,3.18480222]
[1680549006823,0.11000001,1828.9,1828.8,2.63800222]
[1680549007221,0.11000001,1829.0,1828.9,0.11]
[1680549007424,1e-08,1829.0,1828.9,10.70880462]
[1680549007716,0.11000001,1829.5,1829.1,2.093]
[1680549007919,0.11000001,1829.5,1829.4,3.99618]
[1680549008148,0.11000001,1829.5,1829.4,8.12233218]
[1680549008347,0.11000001,1829.5,1829.4,9.2214304]
[1680549008505,0.11000001,1829.5,1829.4,6.22540822]
[1680549008706,0.11000001,1829.5,1829.4,4.14240822]
[1680549008915,0.11000001,1829.5,1829.4,0.27331]
[1680549009116,0.11000001,1829.5,1829.4,3.27331]
[1680549009432,0.11000001,1829.5,1829.4,0.81993]
[1680549009637,0.11000001,1829.5,1829.4,0.27331]
[1680549010032,0.11000001,1829.5,1829.3,3.27332]
[1680549010252,0.11000001,1829.5,1829.4,0.27331]
[1680549010634,0.11000001,1829.5,1829.4,0.81993]
[1680549010843,0.11000001,1829.5,1829.4,2.91293]
[1680549011038,0.11000001,1829.5,1829.4,8.67895218]
[1680549011241,1e-08,1829.5,1829.4,8.68095218]
[1680549011475,2e-08,1829.6,1829.4,10.0889551]
[1680549011643,2e-08,1829.6,1829.5,8.08402218]
[1680549011837,2e-08,1829.6,1829.5,9.99909218]
[1680549012045,3e-08,1829.7,1829.5,9.99909218]
[1680549012276,3e-08,1829.7,1829.6,3.09290922]
[1680549012590,3e-08,1829.7,1829.6,6.6787714]
[1680549012752,3e-08,1829.7,1829.6,9.6807714]
[1680549013296,3e-08,1829.7,1829.6,9.9107714]
[1680549014240,3e-08,1829.7,1829.6,16.7317714]
[1680549014445,0.11000001,1830.0,1829.7,5.821]
[1680549014665,0.11000001,1830.0,1829.9,2.093]
[1680549014941,1e-08,1830.0,1829.9,5.90872218]
[1680549015214,1e-08,1830.0,1829.9,8.91072218]
[1680549016694,0.10180106,1830.5,1829.9,8.91672218]
[1680549016857,0.10180106,1830.5,1830.0,8.08902218]
[1680549017040,0.10180106,1830.5,1830.1,2.72131222]
[1680549017241,0.10180106,1830.5,1830.2,5.08402218]
[1680549017440,0.10180106,1830.5,1830.3,0.81952]
[1680549017800,0.10180106,1830.5,1830.4,2.093]
[1680549017935,0.10180106,1830.5,1830.4,5.91248]
[1680549018141,0.10180106,1830.5,1830.4,9.91182118]
[1680549018373,0.10180106,1830.5,1830.4,6.096319]
[1680549018557,0.10180106,1830.5,1830.4,4.282479]
[1680549018764,0.10180106,1830.5,1830.3,3.008]
[1680549019015,0.10180106,1830.5,1830.4,0.81948]
[1680549019215,0.10180106,1830.5,1830.4,0.27316]
[1680549019492,0.10180106,1830.5,1830.3,3.55235]
[1680549019691,0.10180106,1830.5,1830.3,4.753165]
[1680549019988,0.10180106,1830.5,1830.3,3.006]
[1680549020191,0.10180106,1830.5,1830.2,0.006]
[1680549020838,0.10180106,1830.5,1830.2,0.002]
[1680549020997,0.10180106,1830.5,1830.1,3.81490222]
[1680549021199,0.32050406,1830.5,1830.2,0.27319]
[1680549021458,0.32050406,1830.5,1830.2,3.59738144]
[1680549024800,0.32050406,1830.5,1830.2,6.36340362]
[1680549024996,0.32050406,1830.5,1830.4,0.81948]
[1680549025760,0.32050406,1830.5,1830.3,3.006]
[1680549026048,0.32050406,1830.5,1830.2,0.69281144]
[1680549026253,0.32050406,1830.5,1830.2,0.68481144]
[1680549026643,0.32050406,1830.5,1830.2,0.95799144]
[1680549026954,0.47050406,1830.5,1830.2,0.81956]
[1680549027185,0.47050406,1830.5,1830.2,0.27318]
[1680549027313,0.47050406,1830.5,1830.1,3.006]
[1680549027515,0.02229537,1830.4,1830.0,3.008]
[1680549027721,0.02229537,1830.4,1830.0,3.006]
[1680549028029,0.29545537,1830.4,1830.0,3.006]
[1680549028230,0.29545537,1830.4,1830.0,0.006]
[1680549028447,0.29545537,1830.4,1829.7,0.55253]
[1680549028647,0.29545537,1830.4,1829.7,0.006]
[1680549028648,2.085,1830.3,1829.7,0.006]
[1680549028871,8.1263,1830.3,1829.6,0.27927]
[1680549029031,8.94784,1830.3,1829.7,0.27326]
[1680549029231,1.167984,1830.2,1829.6,0.27927]
[1680549029467,1.167984,1830.2,1829.6,0.006]
[1680549030424,1.714364,1830.2,1829.6,0.006]
[1680549030694,0.4446464,1830.1,1829.6,0.006]
[1680549031019,0.1714364,1830.1,1829.6,0.006]
[1680549031221,0.1714364,1830.1,1829.6,0.27927]
[1680549031528,0.4446464,1830.1,1829.6,0.006]
[1680549031767,0.1714364,1830.1,1829.6,0.27928]
[1680549032447,0.1714364,1830.1,1829.6,0.82584]
[1680549032962,0.4446464,1830.1,1829.6,0.27928]
[1680549033174,0.1714364,1830.1,1829.6,0.27928]
[1680549033522,0.4446364,1830.1,1829.6,0.27928]
[1680549033723,0.1714364,1830.1,1829.6,0.27928]
[1680549034078,0.1714364,1830.1,1829.6,1.208427]
[1680549034619,0.91907937,1830.2,1829.6,1.208427]
[1680549034825,0.91707937,1830.2,1829.6,1.208427]
[1680549035394,6.0433,1830.3,1829.6,3.97444918]
[1680549035615,0.002,1830.3,1829.8,0.81972]
[1680549035778,5.98720406,1830.5,1829.8,2.01472]
[1680549035978,5.98920406,1830.5,1829.9,0.201472]
[1680549036279,0.47250406,1830.5,1830.0,0.81965]
[1680549036499,0.49279943,1830.5,1830.0,3.27322]
[1680549036832,0.49279943,1830.5,1830.0,0.6206892]
[1680549037030,9.07982161,1830.5,1829.9,3.207472]
[1680549037186,9.08182161,1830.5,1830.0,0.27322]
[1680549037383,10.27182161,1830.5,1830.0,0.27322]
[1680549037699,1.68479943,1830.5,1830.0,0.81966]
[1680549038028,1.68279943,1830.5,1830.0,0.901626]
[1680549038531,1.68279943,1830.5,1830.0,0.355186]
[1680549038828,1.68279943,1830.5,1830.0,0.901626]
[1680549040039,1.95594943,1830.5,1830.0,0.081966]
[1680549040227,1.68279943,1830.5,1830.0,0.27322]
[1680549040427,1.46409643,1830.5,1830.0,0.27322]
[1680549040735,0.27409643,1830.5,1830.0,0.81966]
[1680549040887,0.25180106,1830.5,1830.0,0.81966]
[1680549041088,0.25180106,1830.5,1830.0,0.82566]
[1680549041287,0.25180106,1830.5,1830.1,0.082566]
[1680549041519,0.25180106,1830.5,1830.2,0.27319]
[1680549041706,0.25180106,1830.5,1830.2,3.0]
[1680549041902,0.25180106,1830.5,1830.2,0.81957]
[1680549042597,0.25180106,1830.5,1830.2,0.27319]
[1680549042796,0.25180106,1830.5,1830.2,0.3640066]
[1680549043336,0.25180106,1830.5,1830.2,0.0908166]
[1680549043501,0.25180106,1830.5,1830.1,0.355756]
[1680549043704,0.25180106,1830.5,1830.1,0.082566]
[1680549043908,0.25180106,1830.5,1830.1,0.355766]
[1680549044606,0.25180106,1830.5,1830.1,0.082566]
[1680549045128,0.25180106,1830.5,1830.1,0.355766]
[1680549045338,0.25180106,1830.5,1830.1,0.082566]
[1680549045537,0.52496106,1830.5,1830.1,0.082566]
[1680549045696,0.25180106,1830.5,1830.1,0.082566]
[1680549045899,0.25180106,1830.5,1830.2,2.76602218]
[1680549046100,0.24928126,1830.5,1830.3,4.69360222]
[1680549046313,0.24928126,1830.5,1830.4,2.76602218]
[1680549046610,0.24928126,1830.5,1830.4,6.81550218]
[1680549046810,0.24928126,1830.5,1830.4,6.81750218]
[1680549047015,0.00028126,1830.5,1830.4,6.81750218]
[1680549047329,0.00028126,1830.5,1830.4,7.75487962]
[1680549048341,0.00028126,1830.5,1830.4,7.52487962]
[1680549048509,0.00028126,1830.5,1830.4,4.21253744]
[1680549048711,0.00028126,1830.5,1830.4,4.75685744]
[1680549050636,0.00028126,1830.5,1830.4,7.52287962]
[1680549050811,0.00028126,1830.5,1830.4,8.71987962]
[1680549051353,0.00028126,1830.5,1830.4,0.002]
[1680549051354,11.25044344,1830.5,1830.4,0.002]
[1680549051529,12.02873344,1830.5,1829.7,1.93374348]
[1680549051702,1.195,1830.1,1829.9,0.27323]
[1680549051904,1.195,1830.1,1829.7,2.20499348]
[1680549052238,1.195,1830.2,1829.8,0.21772965]
[1680549052412,2.091,1830.2,1829.8,0.21772965]
[1680549052622,2.091,1830.2,1829.6,0.82883365]
[1680549052853,2.091,1830.2,1829.6,3.32158583]
[1680549053023,2.091,1830.2,1829.7,0.55556365]
[1680549053728,2.091,1830.2,1829.7,3.82882365]
[1680549054143,0.006,1830.3,1829.8,2.76602218]
[1680549054341,0.2732,1830.2,1829.9,3.0]
[1680549054552,2.094,1830.3,1829.8,0.63415858]
[1680549054756,2.094,1830.3,1829.8,0.90539858]
[1680549054950,2.094,1830.3,1829.8,0.63215858]
[1680549055319,2.094,1830.3,1829.7,3.002]
[1680549055320,2.079,1830.1,1829.7,3.002]
[1680549055524,2.079,1830.1,1829.6,3.55756365]
[1680549055741,2.3582,1830.2,1829.7,0.55556365]
[1680549056026,2.35819,1830.2,1829.7,0.82882365]
[1680549056261,2.35819,1830.2,1829.7,0.74282997]
[1680549056759,2.085,1830.2,1829.7,1.01608997]
[1680549057318,2.35819,1830.2,1829.7,1.01608997]
[1680549057523,2.085,1830.2,1829.7,1.01608997]
[1680549058282,2.35819,1830.2,1829.7,0.74282997]
[1680549058429,2.35819,1830.2,1829.8,0.074283]
[1680549058623,2.35819,1830.2,1829.9,2.76602218]
[1680549058624,0.006,1830.2,1829.9,2.76602218]
[1680549058819,0.00628126,1830.5,1830.0,3.0]
[1680549059024,0.27316,1830.4,1830.0,3.0]
[1680549059318,0.27316,1830.4,1830.0,0.3002]
[1680549059319,0.27916,1830.4,1830.0,0.3002]
[1680549059523,0.55258126,1830.5,1829.8,5.27527648]
[1680549059722,0.27944126,1830.5,1829.9,3.03924218]
[1680549060168,0.27944126,1830.5,1830.0,3.0]
[1680549060382,0.82573126,1830.5,1830.0,3.0]
[1680549060550,0.00628126,1830.5,1830.0,3.87734522]
[1680549060883,0.00628126,1830.5,1830.0,7.1898074]
[1680549061085,0.00628126,1830.5,1830.0,7.1918074]
[1680549061265,0.00628126,1830.5,1830.1,0.2732]
[1680549061581,0.00628126,1830.5,1830.1,0.66453474]
[1680549061884,0.00628126,1830.5,1830.1,0.93773474]
[1680549062066,0.00628126,1830.5,1830.1,0.66453474]
[1680549062274,0.27943126,1830.5,1830.1,0.66453474]
[1680549062444,0.00628126,1830.5,1830.1,0.66453474]
[1680549063107,0.00628126,1830.5,1830.1,0.93773474]
[1680549063397,0.00628126,1830.5,1830.2,0.09377347]
[1680549063941,3.59174344,1830.5,1830.0,3.002]
[1680549064183,2.091,1830.4,1830.1,3.0]
[1680549064521,2.37016,1830.4,1829.9,0.002]
[1680549064726,2.65583213,1830.4,1829.8,0.27324]
[1680549064924,2.66183213,1830.4,1829.8,0.27324]
[1680549065273,2.38867213,1830.4,1829.8,1.37530365]
[1680549065488,2.38867213,1830.4,1829.8,4.8959794]
[1680549066091,2.38867213,1830.4,1829.8,4.34041575]
[1680549066596,2.097,1830.4,1829.9,3.0]
[1680549067035,2.097,1830.4,1830.0,0.27321]
[1680549067340,2.091,1830.4,1830.0,0.27321]
[1680549067486,2.091,1830.4,1830.0,0.81965]
[1680549067487,2.097,1830.4,1830.0,0.81965]
[1680549067687,2.097,1830.4,1830.1,0.081965]
[1680549067894,2.097,1830.4,1830.2,3.58559218]
[1680549067895,0.006,1830.4,1830.2,3.58559218]
[1680549068102,0.006,1830.4,1830.3,3.0]
[1680549068336,0.00028126,1830.5,1830.3,3.0]
[1680549068643,0.00028126,1830.5,1830.3,3.60412122]
[1680549069344,0.00028126,1830.5,1830.3,3.0]
[1680549069663,0.00028126,1830.5,1830.1,0.002]
[1680549069939,0.00028126,1830.5,1830.0,3.27322]
[1680549070139,0.00028126,1830.5,1830.0,6.03924218]
[1680549070310,0.00028126,1830.5,1830.0,6.04124218]
[1680549070505,0.00028126,1830.5,1830.1,0.60412422]
[1680549070708,0.00028126,1830.5,1830.0,3.002]
[1680549070919,2.89872126,1830.5,1829.9,9.3268]
[1680549071109,2.088,1830.3,1829.9,9.3268]
[1680549071317,0.27319,1830.2,1829.9,0.002]
[1680549071599,0.27319,1830.2,1829.7,0.55556365]
[1680549071844,2.088,1830.3,1829.7,3.17798393]
[1680549072056,7.8285,1830.3,1829.7,4.28007758]
[1680549072263,7.8365,1830.3,1829.7,4.28007758]
[1680549072461,8.10968,1830.3,1829.7,4.28007758]
[1680549072664,7.8365,1830.3,1829.8,3.0]
[1680549072897,7.8365,1830.3,1829.8,4.00124776]
[1680549074151,5.7485,1830.3,1829.9,2.76602218]
[1680549074350,0.008,1830.3,1830.0,3.81966]
[1680549074693,0.00628126,1830.5,1830.0,6.58568218]
[1680549075000,0.00628126,1830.5,1830.2,0.27319]
[1680549075164,0.11000001,1830.6,1830.2,3.27319]
[1680549075366,0.11000001,1830.6,1830.2,3.82557]
[1680549075800,0.11000001,1830.6,1830.3,2.76602218]
[1680549076031,0.11000001,1830.6,1830.4,0.27660222]
[1680549076311,0.11000001,1830.6,1830.5,0.27314]
[1680549076474,0.11000001,1830.6,1830.5,0.81943]
[1680549076862,0.11000001,1830.6,1830.5,0.27314]
[1680549078308,0.11000001,1830.6,1830.4,3.28260222]
[1680549078475,0.11000001,1830.6,1830.5,0.38289222]
[1680549078680,0.11000001,1830.6,1830.5,3.0]
[1680549078979,0.11000001,1830.6,1830.4,0.28260222]
[1680549079178,0.11000001,1830.6,1830.3,0.27317]
[1680549079390,0.11000001,1830.6,1830.3,3.03919218]
[1680549079562,0.11000001,1830.6,1830.4,3.0]
[1680549079762,0.11000001,1830.6,1830.4,3.27916]
[1680549080063,0.11000001,1830.6,1830.3,0.008]
[1680549080262,0.11000001,1830.6,1830.2,3.0]
[1680549080263,2.20100001,1830.6,1830.2,3.006]
[1680549080504,2.20100001,1830.6,1830.2,0.006]
[1680549080505,3.25371955,1830.6,1830.2,0.006]
[1680549080683,2.43432955,1830.6,1830.1,0.2792]
[1680549081014,2.43432955,1830.6,1830.1,0.2732]
[1680549082101,0.34332955,1830.6,1830.1,0.2792]
[1680549082400,0.34332955,1830.6,1830.1,1.91244]
[1680549082604,0.11000001,1830.6,1830.1,5.46584037]
[1680549082772,0.11000001,1830.6,1830.1,5.46784037]
[1680549082974,0.11000001,1830.6,1830.1,8.23386255]
[1680549083806,0.11000001,1830.6,1830.3,0.81952]
[1680549083989,0.11000001,1830.6,1830.5,0.27314]
[1680549084580,0.11000001,1830.6,1830.4,0.355102]
[1680549086512,0.11000001,1830.6,1830.4,0.901422]
[1680549087009,0.11000001,1830.6,1830.4,4.76009418]
[1680549087169,0.11000001,1830.6,1830.5,3.0]
[1680549087506,0.11000001,1830.6,1830.5,4.05574942]
[1680549087702,0.11000001,1830.6,1830.5,4.60203942]
[1680549090549,0.11000001,1830.6,1830.5,6.8217716]
[1680549090765,0.11000001,1830.6,1830.5,6.8237716]
[1680549092021,0.11000001,1830.6,1830.5,6.5506316]
[1680549092949,0.11000001,1830.6,1830.5,6.8237716]
[1680549094351,0.11000001,1830.6,1830.5,6.5506316]
[1680549094860,0.11000001,1830.6,1830.5,6.8237716]
[1680549095421,0.10704135,1830.6,1830.5,3.78460942]
[1680549095623,0.10704135,1830.6,1830.5,3.0]
[1680549096157,0.10704135,1830.6,1830.3,0.28116]
[1680549096465,0.10704135,1830.6,1830.4,3.03917218]
[1680549096612,0.10704135,1830.6,1830.5,3.0]
[1680549097619,0.10704135,1830.6,1830.5,0.27314]
[1680549097963,0.38017135,1830.6,1830.2,3.008]
[1680549098264,2.47117135,1830.6,1830.3,3.0]
[1680549098461,2.47117135,1830.6,1830.1,3.56356365]
[1680549098462,2.45838802,1830.6,1830.2,0.008]
[1680549098612,2.45838802,1830.6,1830.2,0.27318]
[1680549099119,2.45838802,1830.6,1830.2,0.81956]
[1680549099418,2.45838802,1830.6,1830.2,0.27318]
[1680549100110,0.2458388,1830.5,1830.1,3.83476365]
[1680549100307,0.2458388,1830.5,1830.1,3.006]
[1680549100541,0.2458388,1830.5,1830.1,3.2732]
[1680549100763,0.2458388,1830.5,1830.1,3.81961]
[1680549101055,0.2458388,1830.5,1830.1,3.82561]
[1680549102068,2.3248388,1830.5,1830.1,3.81961]
[1680549102263,2.3248388,1830.5,1830.1,3.82561]
[1680549103186,0.36938802,1830.6,1830.1,4.38117365]
[1680549103338,0.10704135,1830.6,1830.1,4.37517365]
[1680549103842,0.10704135,1830.6,1830.1,3.81961]
[1680549104395,0.10704135,1830.6,1830.1,4.37517365]
[1680549106492,0.10704135,1830.6,1830.2,2.76602218]
[1680549106673,0.10704135,1830.6,1830.3,3.54977222]
[1680549107460,2.18604135,1830.6,1830.3,3.0]
[1680549107657,2.18604135,1830.6,1830.2,0.27318]
[1680549108361,2.18604135,1830.6,1830.1,0.27319]
[1680549109293,2.18604135,1830.6,1830.1,0.8196]
[1680549109537,2.99464978,1830.6,1830.1,0.8196]
[1680549109725,2.99464978,1830.6,1830.1,3.8196]
[1680549109920,0.11188895,1830.6,1830.2,2.76602218]
[1680549110123,0.10704135,1830.6,1830.3,3.81952]
[1680549110292,0.11188895,1830.6,1830.3,3.81952]
[1680549110491,0.11188895,1830.6,1830.3,3.0]
[1680549110695,0.10704135,1830.6,1830.3,3.87729122]
[1680549111591,0.10704135,1830.6,1830.3,4.42364122]
[1680549112939,0.10704135,1830.6,1830.3,3.87729122]
[1680549113537,0.10704135,1830.6,1830.3,4.42364122]
[1680549115208,0.10704135,1830.6,1830.3,3.87729122]
[1680549115465,0.10704135,1830.6,1830.3,3.0]
[1680549115624,1.30104135,1830.6,1830.2,0.27518]
[1680549115953,1.30104135,1830.6,1830.2,0.27318]
[1680549116564,1.30104135,1830.6,1830.2,0.81956]
[1680549116773,1.30104135,1830.6,1830.2,1.37512365]
[1680549118018,1.30104135,1830.6,1830.2,1.8965814]
[1680549118355,1.30104135,1830.6,1830.2,4.8965814]
[1680549119421,1.30104135,1830.6,1830.3,0.55556365]
[1680549119618,0.10704135,1830.6,1830.2,3.83074365]
[1680549119822,0.10704135,1830.6,1830.2,3.82874365]
[1680549120272,1.188,1830.4,1830.2,0.80598283]
[1680549120482,0.1188,1830.3,1830.2,0.79998283]
[1680549120638,0.07640611,1830.6,1830.2,0.79998283]
[1680549120841,0.23,1830.5,1830.2,1.07317283]
[1680549122768,0.07640611,1830.6,1830.2,1.61955283]
[1680549123282,1.422,1830.5,1830.2,0.79998283]
[1680549125400,0.07640611,1830.6,1830.2,1.61955283]
[1680549125944,0.07640611,1830.6,1830.2,1.07317283]
[1680549126388,0.07640611,1830.6,1830.2,1.6190765]
[1680549126592,0.07640611,1830.6,1830.2,2.1154565]
[1680549127298,0.07640611,1830.6,1830.2,2.0654565]
[1680549127444,0.07640611,1830.6,1830.2,2.89691038]
[1680549127743,0.07640611,1830.6,1830.2,2.35053038]
[1680549128377,0.07640611,1830.6,1830.2,1.2458865]
[1680549128605,0.34953611,1830.6,1830.2,0.69998283]
[1680549128824,9.77202218,1830.5,1830.2,0.69998283]
[1680549129019,0.50316,1830.4,1830.2,0.69998283]
[1680549129190,3.29147755,1830.4,1830.2,0.69998283]
[1680549129514,0.32914776,1830.3,1830.2,0.69998283]
[1680549129720,0.55914776,1830.3,1830.2,0.69998283]
[1680549130723,0.55914776,1830.3,1830.2,0.97317283]
[1680549131017,0.02229537,1830.4,1830.2,0.97317283]
[1680549131222,0.25229537,1830.4,1830.2,0.97317283]
[1680549132010,0.25229537,1830.4,1830.2,0.69998283]
[1680549132615,0.25229537,1830.4,1830.2,0.97317283]
[1680549132922,0.02229537,1830.4,1830.2,0.69998283]
[1680549135426,0.02229537,1830.4,1830.2,0.97316283]
[1680549135933,0.02229537,1830.4,1830.2,0.69998283]
[1680549136840,8.58702218,1830.3,1830.2,0.69998283]
[1680549137059,8.58702218,1830.3,1830.2,0.24441918]
[1680549137060,9.79935393,1830.3,1830.2,0.24441918]
[1680549137335,0.98233175,1830.3,1830.2,0.24441918]
[1680549137538,0.98033175,1830.3,1830.2,0.24441918]
[1680549138122,11.03452393,1830.3,1830.2,0.24441918]
[1680549138337,11.27137153,1830.3,1830.2,0.24441918]
[1680549138638,8.23217935,1830.3,1830.2,0.24441918]
[1680549140932,10.99820153,1830.3,1830.2,0.24441918]
[1680549141144,11.27137153,1830.3,1830.2,0.24441918]
[1680549141494,8.50534935,1830.3,1830.2,0.24441918]
[1680549141696,8.23217935,1830.3,1830.2,0.24441918]
[1680549142004,7.03817935,1830.3,1830.2,0.24441918]
[1680549142350,6.80817935,1830.3,1830.2,0.24441918]
[1680549142644,7.08134935,1830.3,1830.2,0.24441918]
[1680549142946,6.80817935,1830.3,1830.2,0.24441918]
[1680549143096,0.0068476,1830.3,1830.2,0.80565447]
[1680549143304,0.0068476,1830.5,1830.2,1.07587306]
[1680549143551,0.0048476,1830.5,1830.3,0.56137697]
[1680549143855,0.2779976,1830.5,1830.3,0.56137697]
[1680549143997,0.0048476,1830.5,1830.3,0.56137697]
[1680549144304,5.821,1830.5,1830.3,0.56137697]
[1680549144515,5.8278476,1830.5,1830.3,0.56137697]
[1680549144827,0.0068476,1830.5,1830.3,0.56137697]
[1680549145014,6.66381313,1830.6,1830.3,0.56137697]
[1680549145215,12.21167313,1830.6,1830.3,0.56137697]
[1680549145637,12.48480313,1830.6,1830.3,0.56137697]
[1680549145958,0.63387313,1830.6,1830.3,1.39283085]
[1680549146119,0.62702553,1830.6,1830.4,0.56137697]
[1680549146318,0.63187313,1830.6,1830.0,1.66490777]
[1680549146524,0.90500313,1830.6,1830.1,5.67187148]
[1680549146722,0.90500313,1830.6,1830.1,0.16849078]
[1680549146921,0.90500313,1830.6,1830.1,0.16649078]
[1680549147118,0.63187313,1830.6,1830.1,0.43969078]
[1680549147321,0.63187313,1830.6,1830.1,0.16649078]
[1680549147525,0.90500313,1830.6,1830.1,0.16649078]
[1680549147939,0.63187313,1830.6,1830.1,0.43968078]
[1680549148146,0.63187313,1830.6,1830.1,0.16649078]
[1680549148445,0.90500313,1830.6,1830.1,0.16649078]
[1680549149245,1.45126313,1830.6,1830.1,0.16649078]
[1680549149818,1.45126313,1830.6,1830.0,5.76802218]
[1680549149819,1.194,1830.3,1830.0,0.002]
[1680549150020,6.64057,1830.2,1829.9,5.50605134]
[1680549150240,6.6474176,1830.2,1829.9,0.002]
[1680549150413,7.83488435,1830.2,1829.7,1.37817983]
[1680549150613,7.83488435,1830.2,1829.8,5.50628133]
[1680549150830,7.83488435,1830.2,1829.8,5.51428133]
[1680549151131,7.83973195,1830.2,1829.8,0.002]
[1680549151357,7.83973195,1830.2,1829.8,5.50632277]
[1680549151577,7.83973195,1830.2,1829.8,0.002]
[1680549151578,7.7969732,1830.1,1829.8,0.002]
[1680549151875,1.93484537,1830.0,1829.6,3.0]
[1680549152055,1.93484537,1830.0,1829.7,5.50689248]
[1680549152233,1.93484537,1830.0,1829.7,5.50889248]
[1680549152428,1.93484537,1830.0,1829.7,5.50585538]
[1680549152674,0.84680297,1830.0,1829.7,5.50585538]
[1680549152868,5.821,1829.9,1829.7,5.50585538]
[1680549153129,5.8278476,1829.9,1829.7,5.50585538]